fUST/lending_fUST_20250617
["ID","MTS","AMOUNT","RATE_DAILY","PERIOD"]
[366275769,1750170646545,-460.0,0.00024136,6]
[366275771,1750170646554,-460.0,0.00024136,6]
[366275773,1750170646564,-551.97,0.00024136,6]
[366275775,1750170646573,-460.0,0.00024136,6]
[366275776,1750170646582,-407.62562123,0.00024136,6]
[366275777,1750170646593,-460.0,0.00024136,6]
[366275778,1750170646602,-367.25015197,0.00024136,6]
[366275779,1750170646612,-219.54451862,0.00024136,6]
[366275780,1750170646622,-460.0,0.00024136,6]
[366275781,1750170646632,-549.97,0.00024136,6]
[366275782,1750170646642,-460.0,0.00024136,6]
[366275783,1750170646651,-460.0,0.00024136,6]
[366275784,1750170646660,-460.0,0.00024136,6]
[366275785,1750170646670,-460.0,0.00024136,6]
[366275786,1750170646680,-200.27261929,0.00024136,6]
[366275787,1750170646689,-460.0,0.00024136,6]
[366275788,1750170646699,-460.0,0.00024136,6]
[366275790,1750170646708,-460.0,0.00024136,6]
[366275792,1750170646718,-460.0,0.00024136,6]
[366275794,1750170646727,-460.0,0.00024136,6]
[366275796,1750170646736,-460.0,0.00024136,6]
[366275798,1750170646746,-460.0,0.00024136,6]
[366275800,1750170646755,-460.0,0.00024136,6]
[366275802,1750170646765,-418.02097966,0.00024136,6]
[366275804,1750170646774,-460.0,0.00024136,6]
[366275806,1750170646784,-353.43177733,0.00024136,6]
[366275808,1750170646793,-298.95049704,0.00024136,6]
[366275810,1750170646806,-460.0,0.00024136,6]
[366275812,1750170646816,-460.0,0.00024136,6]
[366275814,1750170646825,-460.0,0.00024136,6]
[366275816,1750170646835,-392.15089377,0.00024136,6]
[366275818,1750170646844,-460.0,0.00024136,6]
[366275820,1750170646854,-460.0,0.00024136,6]
[366275822,1750170646864,-460.0,0.00024136,6]
[366275824,1750170646873,-460.0,0.00024136,6]
[366275826,1750170646883,-405.83941792,0.00024136,6]
[366275828,1750170646893,-460.0,0.00024136,6]
[366275830,1750170646903,-460.0,0.00024136,6]
[366275832,1750170646912,-460.0,0.00024136,6]
[366275834,1750170646921,-460.0,0.00024136,6]
[366275836,1750170646931,-418.81520978,0.00024136,6]
[366275838,1750170646940,-460.0,0.00024136,6]
[366275840,1750170646950,-182.90591742,0.00024136,6]
[366275842,1750170646959,-460.0,0.00024136,6]
[366275844,1750170646969,-460.0,0.00024136,6]
[366275846,1750170646979,-460.0,0.00024136,6]
[366275848,1750170646988,-460.0,0.00024136,6]
[366275850,1750170646997,-460.0,0.00024136,6]
[366275852,1750170647007,-460.0,0.00024136,6]
[366275854,1750170647016,-460.0,0.00024136,6]
[366275856,1750170647025,-460.0,0.00024136,6]
[366275858,1750170647035,-420.0,0.00024136,6]
[366275860,1750170647044,-460.0,0.00024136,6]
[366275862,1750170647053,-460.0,0.00024136,6]
[366275864,1750170647063,-555.09638383,0.00024136,6]
[366275866,1750170647072,-460.0,0.00024136,6]
[366275868,1750170647081,-460.0,0.00024136,6]
[366275869,1750170647091,-550.30150225,0.00024136,6]
[366275871,1750170647100,-460.0,0.00024136,6]
[366275873,1750170647110,-212.48163787,0.00024136,6]
[366275875,1750170647119,-460.0,0.00024136,6]
[366275877,1750170647129,-460.0,0.00024136,6]
[366275879,1750170647139,-460.0,0.00024136,6]
[366275881,1750170647148,-460.0,0.00024136,6]
[366275895,1750170647266,-460.0,0.00024136,6]
[366275897,1750170647276,-460.0,0.00024136,6]
[366275899,1750170647286,-460.0,0.00024136,6]
[366275901,1750170647296,-531.93,0.00024136,6]
[366275903,1750170647305,-460.0,0.00024136,6]
[366275905,1750170647314,-460.0,0.00024136,6]
[366275907,1750170647324,-559.95755019,0.00024136,6]
[366275909,1750170647333,-460.0,0.00024136,6]
[366275911,1750170647342,-460.0,0.00024136,6]
[366275913,1750170647352,-460.0,0.00024136,6]
[366275915,1750170647361,-460.0,0.00024136,6]
[366275917,1750170647371,-460.0,0.00024136,6]
[366275919,1750170647380,-460.0,0.00024136,6]
[366275921,1750170647389,-460.0,0.00024136,6]
[366275923,1750170647398,-460.0,0.00024136,6]
[366275924,1750170647409,-503.35,0.00024136,6]
[366275927,1750170647419,-531.58,0.00024136,6]
[366275928,1750170647428,-500.0,0.00024136,6]
[366275931,1750170647438,-190.13168472,0.00024136,6]
[366275933,1750170647448,-1444.82,0.00024136,6]
[366275935,1750170647457,-460.0,0.00024136,6]
[366275937,1750170647467,-338.01891494,0.00024136,6]
[366275939,1750170647476,-634.51,0.00024136,6]
[366275941,1750170647486,-460.0,0.00024136,6]
[366275943,1750170647496,-460.0,0.00024136,6]
[366275945,1750170647506,-460.0,0.00024136,6]
[366275947,1750170647515,-460.0,0.00024136,6]
[366275949,1750170647525,-460.0,0.00024136,6]
[366275951,1750170647534,-460.0,0.00024136,6]
[366275953,1750170647543,-460.0,0.00024136,6]
[366275955,1750170647552,-460.0,0.00024136,6]
[366275957,1750170647562,-460.0,0.00024136,6]
[366275959,1750170647572,-460.0,0.00024136,6]
[366275961,1750170647581,-460.0,0.00024136,6]
[366275963,1750170647591,-344.60430349,0.00024136,6]
[366275965,1750170647600,-460.0,0.00024136,6]
[366275967,1750170647610,-460.0,0.00024136,6]
[366275969,1750170647619,-460.0,0.00024136,6]
[366275971,1750170647629,-460.0,0.00024136,6]
[366275973,1750170647639,-460.0,0.00024136,6]
[366275975,1750170647648,-247.17004779,0.00024136,6]
[366275977,1750170647658,-460.0,0.00024136,6]
[366275979,1750170647667,-460.0,0.00024136,6]
[366275981,1750170647676,-460.0,0.00024136,6]
[366275983,1750170647686,-460.0,0.00024136,6]
[366275985,1750170647695,-460.0,0.00024136,6]
[366275986,1750170647705,-441.80511731,0.00024136,6]
[366275988,1750170647714,-420.0,0.00024136,6]
[366275990,1750170647724,-460.0,0.00024136,6]
[366275992,1750170647733,-460.0,0.00024136,6]
[366275994,1750170647743,-460.0,0.00024136,6]
[366275996,1750170647753,-460.0,0.00024136,6]
[366275998,1750170647763,-427.65048428,0.00024136,6]
[366276000,1750170647773,-441.89505066,0.00024136,6]
[366276003,1750170647784,-460.0,0.00024136,6]
[366276005,1750170647794,-460.0,0.00024136,6]
[366276007,1750170647807,-370.0,0.00024136,6]
[366276009,1750170647817,-366.18886522,0.00024136,6]
[366276011,1750170647827,-1338.75,0.00024136,6]
[366276013,1750170647838,-249.53432683,0.00024136,6]
[366276015,1750170647849,-460.0,0.00024136,6]
[366276017,1750170647859,-460.0,0.00024136,6]
[366276019,1750170647870,-460.0,0.00024136,6]
[366276021,1750170647880,-460.0,0.00024136,6]
[366276023,1750170647891,-460.0,0.00024136,6]
[366276025,1750170647901,-493.63770061,0.00024136,6]
[366276027,1750170647910,-191.25863601,0.00024136,6]
[366276029,1750170647921,-460.0,0.00024136,6]
[366276031,1750170647931,-609.33,0.00024136,6]
[366276033,1750170647941,-436.08697673,0.00024136,6]
[366276035,1750170647951,-460.0,0.00024136,6]
[366276037,1750170647961,-3630.13,0.00024136,6]
[366276039,1750170647971,-460.0,0.00024136,6]
[366276041,1750170647980,-1029.77,0.00024136,6]
[366276043,1750170647989,-460.0,0.00024136,6]
[366276045,1750170647999,-460.0,0.00024136,6]
[366276048,1750170648010,-460.0,0.00024136,6]
[366276050,1750170648020,-460.0,0.00024136,6]
[366276051,1750170648030,-784.51,0.00024136,6]
[366276054,1750170648039,-440.0,0.00024136,6]
[366276056,1750170648050,-460.0,0.00024136,6]
[366276058,1750170648060,-460.0,0.00024136,6]
[366276060,1750170648069,-460.0,0.00024136,6]
[366276062,1750170648079,-882.04,0.00024136,6]
[366276064,1750170648089,-460.0,0.00024136,6]
[366276066,1750170648099,-460.0,0.00024136,6]
[366276068,1750170648109,-2162.37,0.00024136,6]
[366276070,1750170648118,-1475.26,0.00024136,6]
[366276072,1750170648127,-1540.65,0.00024136,6]
[366276074,1750170648137,-460.0,0.00024136,6]
[366276076,1750170648146,-460.0,0.00024136,6]
[366276078,1750170648156,-460.0,0.00024136,6]
[366276080,1750170648165,-1268.46,0.00024136,6]
[366276082,1750170648174,-663.63,0.00024136,6]
[366276083,1750170648183,-448.30399999,0.00024136,6]
[366276086,1750170648192,-460.0,0.00024136,6]
[366276087,1750170648201,-460.0,0.00024136,6]
[366276090,1750170648211,-935.47,0.00024136,6]
[366276091,1750170648221,-2724.36,0.00024136,6]
[366276094,1750170648230,-460.0,0.00024136,6]
[366276096,1750170648240,-3840.13,0.00024136,6]
[366276098,1750170648251,-7288.05,0.00024136,6]
[366276099,1750170648261,-460.0,0.00024136,6]
[366276102,1750170648271,-1040.59,0.00024136,6]
[366276104,1750170648281,-1917.42,0.00024136,2]
[366276106,1750170648291,-460.0,0.00024136,6]
[366276108,1750170648301,-1174.45,0.00024136,6]
[366276110,1750170648310,-460.0,0.00024136,6]
[366276111,1750170648319,-460.0,0.00024136,6]
[366276114,1750170648329,-1333.41,0.00024136,6]
[366276116,1750170648339,-460.0,0.00024136,6]
[366276118,1750170648349,-1145.24,0.00024136,6]
[366276120,1750170648360,-460.0,0.00024136,6]
[366276122,1750170648369,-462.72127197,0.00024136,6]
[366276124,1750170648379,-460.0,0.00024136,6]
[366276126,1750170648389,-2132.46,0.00024136,6]
[366276128,1750170648398,-803.49,0.00024136,6]
[366276130,1750170648409,-460.0,0.00024136,6]
[366276132,1750170648419,-465.77,0.00024136,6]
[366276134,1750170648429,-832.17,0.00024136,6]
[366276136,1750170648439,-643.51,0.00024136,6]
[366276138,1750170648449,-460.0,0.00024136,6]
[366276139,1750170648459,-501.88,0.00024136,6]
[366276142,1750170648469,-460.0,0.00024136,6]
[366276144,1750170648479,-5232.99,0.00024136,6]
[366276145,1750170648488,-460.0,0.00024136,6]
[366276148,1750170648498,-460.0,0.00024136,6]
[366276150,1750170648507,-346.99774531,0.00024136,6]
[366276152,1750170648518,-460.0,0.00024136,6]
[366276154,1750170648528,-7478.6,0.00024136,6]
[366276156,1750170648538,-1240.76,0.00024136,6]
[366276158,1750170648548,-460.0,0.00024136,6]
[366276160,1750170648558,-8502.49,0.00024136,6]
[366276161,1750170648569,-460.0,0.00024136,6]
[366276164,1750170648579,-460.0,0.00024136,6]
[366276165,1750170648589,-460.0,0.00024136,6]
[366276168,1750170648601,-6599.11,0.00024136,6]
[366276169,1750170648611,-312.05553249,0.00024136,6]
[366276172,1750170648622,-460.0,0.00024136,6]
[366276174,1750170648632,-461.97,0.00024136,6]
[366276175,1750170648642,-310.0,0.00024136,6]
[366276177,1750170648652,-460.0,0.00024136,6]
[366276180,1750170648662,-786.24,0.00024136,6]
[366276181,1750170648672,-1099.54,0.00024136,6]
[366276184,1750170648682,-1622.68,0.00024136,6]
[366276198,1750170648808,-2000.62,0.00024136,6]
[366276200,1750170648819,-460.0,0.00024136,6]
[366276202,1750170648830,-227.56836683,0.00024136,6]
[366276204,1750170648840,-460.0,0.00024136,6]
[366276206,1750170648851,-606.83,0.00024136,6]
[366276208,1750170648861,-865.2,0.00024136,6]
[366276210,1750170648871,-437.27111428,0.00024136,6]
[366276212,1750170648881,-460.0,0.00024136,6]
[366276214,1750170648891,-460.0,0.00024136,6]
[366276216,1750170648902,-454.49168496,0.00024136,6]
[366276218,1750170648913,-743.98,0.00024136,6]
[366276220,1750170648923,-2502.73,0.00024136,6]
[366276222,1750170648933,-460.0,0.00024136,6]
[366276224,1750170648944,-460.0,0.00024136,6]
[366276226,1750170648956,-1000.96,0.00024136,6]
[366276228,1750170648966,-2971.19,0.00024136,6]
[366276230,1750170648976,-460.0,0.00024136,6]
[366276232,1750170648994,-2366.14,0.00024136,6]
[366276234,1750170649004,-1659.82,0.00024136,6]
[366276237,1750170649014,-460.0,0.00024136,6]
[366276238,1750170649023,-460.0,0.00024136,6]
[366276240,1750170649033,-460.0,0.00024136,6]
[366276243,1750170649043,-460.0,0.00024136,6]
[366276244,1750170649053,-460.0,0.00024136,6]
[366276246,1750170649063,-5996.27,0.00024136,6]
[366276249,1750170649073,-605.93618998,0.00024136,6]
[366276251,1750170649082,-460.0,0.00024136,6]
[366276252,1750170649092,-460.0,0.00024136,6]
[366276254,1750170649102,-790.96,0.00024136,6]
[366276257,1750170649111,-913.6,0.00024136,6]
[366276259,1750170649121,-460.0,0.00024136,6]
[366276261,1750170649131,-520.76,0.00024136,6]
[366276263,1750170649140,-460.0,0.00024136,6]
[366276265,1750170649149,-460.0,0.00024136,6]
[366276266,1750170649158,-3158.59,0.00024136,6]
[366276268,1750170649168,-460.0,0.00024136,6]
[366276271,1750170649179,-440.0,0.00024136,6]
[366276273,1750170649188,-460.0,0.00024136,6]
[366276275,1750170649198,-1186.41,0.00024136,6]
[366276277,1750170649207,-460.0,0.00024136,6]
[366276279,1750170649217,-460.0,0.00024136,6]
[366276281,1750170649227,-1367.69,0.00024136,6]
[366276283,1750170649237,-460.0,0.00024136,6]
[366276285,1750170649247,-460.0,0.00024136,6]
[366276287,1750170649257,-2693.35,0.00024136,6]
[366276289,1750170649267,-460.0,0.00024136,6]
[366276291,1750170649276,-460.0,0.00024136,6]
[366276293,1750170649287,-1577.3,0.00024136,6]
[366276295,1750170649296,-460.0,0.00024136,6]
[366276297,1750170649305,-595.02,0.00024136,6]
[366276299,1750170649315,-460.0,0.00024136,6]
[366276301,1750170649325,-2030.29,0.00024136,6]
[366276303,1750170649334,-460.0,0.00024136,6]
[366276305,1750170649344,-460.28289705,0.00024136,6]
[366276307,1750170649354,-460.0,0.00024136,6]
[366276309,1750170649363,-460.0,0.00024136,6]
[366276311,1750170649373,-460.0,0.00024136,6]
[366276313,1750170649383,-460.0,0.00024136,6]
[366276315,1750170649392,-1039.95,0.00024136,6]
[366276317,1750170649402,-460.0,0.00024136,6]
[366276319,1750170649412,-460.0,0.00024136,6]
[366276321,1750170649422,-671.88,0.00024136,6]
[366276323,1750170649433,-460.0,0.00024136,6]
[366276325,1750170649444,-1594.92,0.00024136,6]
[366276327,1750170649454,-351.53042223,0.00024136,6]
[366276329,1750170649464,-7374.14,0.00024136,6]
[366276331,1750170649473,-1949.63,0.00024136,6]
[366276333,1750170649483,-858.85,0.00024136,6]
[366276335,1750170649492,-460.0,0.00024136,6]
[366276337,1750170649502,-1093.65,0.00024136,6]
[366276339,1750170649513,-460.0,0.00024136,6]
[366276341,1750170649522,-460.0,0.00024136,6]
[366276343,1750170649532,-460.0,0.00024136,6]
[366276345,1750170649542,-915.3,0.00024136,6]
[366276347,1750170649551,-904.51,0.00024136,6]
[366276349,1750170649560,-393.40361519,0.00024136,6]
[366276351,1750170649570,-460.0,0.00024136,6]
[366276353,1750170649580,-460.0,0.00024136,6]
[366276355,1750170649590,-460.0,0.00024136,6]
[366276357,1750170649599,-460.0,0.00024136,6]
[366276359,1750170649610,-609.22,0.00024136,6]
[366276361,1750170649620,-180.06732633,0.00024136,6]
[366276363,1750170649631,-396.76042129,0.00024136,6]
[366276365,1750170649640,-5776.56,0.00024136,6]
[366276367,1750170649650,-460.0,0.00024136,6]
[366276369,1750170649660,-460.0,0.00024136,6]
[366276372,1750170649671,-460.0,0.00024136,6]
[366276373,1750170649681,-460.0,0.00024136,6]
[366276376,1750170649690,-548.56,0.00024136,6]
[366276378,1750170649700,-1266.57,0.00024136,2]
[366276380,1750170649709,-460.0,0.00024136,6]
[366276382,1750170649719,-460.0,0.00024136,6]
[366276384,1750170649729,-589.35,0.00024136,6]
[366276386,1750170649739,-5098.43,0.00024136,6]
[366276388,1750170649749,-460.0,0.00024136,6]
[366276390,1750170649759,-460.0,0.00024136,6]
[366276392,1750170649768,-397.51579736,0.00024136,6]
[366276394,1750170649778,-400.0,0.00024136,6]
[366276395,1750170649788,-460.0,0.00024136,6]
[366276398,1750170649797,-570.0,0.00024164,6]
[366276400,1750170649810,-460.0,0.00024164,6]
[366276401,1750170649819,-460.0,0.00024164,6]
[366276404,1750170649829,-460.0,0.00024164,6]
[366276406,1750170649840,-460.0,0.00024164,6]
[366276408,1750170649850,-460.0,0.00024164,6]
[366276410,1750170649862,-460.0,0.00024164,6]
[366276412,1750170649872,-500.0,0.00024164,6]
[366276414,1750170649881,-460.0,0.00024164,6]
[366276416,1750170649893,-194.57270511,0.00024164,6]
[366276418,1750170649902,-350.0,0.00024164,6]
[366276420,1750170649911,-460.0,0.00024164,6]
[366276422,1750170649920,-460.0,0.00024164,6]
[366276424,1750170649930,-460.0,0.00024164,6]
[366276426,1750170649939,-460.0,0.00024164,6]
[366276427,1750170649949,-460.0,0.00024164,6]
[366276430,1750170649959,-556.07524853,0.00024164,6]
[366276431,1750170649968,-460.0,0.00024164,6]
[366276433,1750170649978,-460.0,0.00024164,6]
[366276436,1750170649988,-463.93722922,0.00024164,6]
[366276438,1750170649998,-460.0,0.00024164,6]
[366276440,1750170650008,-440.0,0.00024164,6]
[366276442,1750170650018,-460.0,0.00024164,6]
[366276444,1750170650027,-454.59611311,0.00024164,6]
[366276446,1750170650036,-460.0,0.00024164,6]
[366276448,1750170650046,-194.93180344,0.00024164,6]
[366276450,1750170650055,-460.0,0.00024164,6]
[366276452,1750170650064,-460.0,0.00024164,6]
[366276454,1750170650073,-460.0,0.00024164,6]
[366276456,1750170650082,-460.0,0.00024164,6]
[366276458,1750170650091,-410.0,0.00024164,6]
[366276460,1750170650101,-460.0,0.00024164,6]
[366276462,1750170650110,-172.61327677,0.00024164,6]
[366276464,1750170650119,-330.0,0.00024164,6]
[366276476,1750170650225,-600.50144815,0.00024164,6]
[366276478,1750170650236,-460.0,0.00024164,6]
[366276480,1750170650245,-460.0,0.00024164,6]
[366276482,1750170650255,-460.0,0.00024164,6]
[366276484,1750170650265,-460.0,0.00024164,6]
[366276486,1750170650275,-460.0,0.00024164,6]
[366276488,1750170650284,-460.0,0.00024164,6]
[366276490,1750170650294,-460.0,0.00024164,6]
[366276492,1750170650304,-460.0,0.00024164,6]
[366276494,1750170650314,-460.0,0.00024164,6]
[366276497,1750170650323,-460.0,0.00024164,6]
[366276499,1750170650333,-460.0,0.00024164,6]
[366276501,1750170650343,-460.0,0.00024164,6]
[366276502,1750170650352,-460.0,0.00024164,6]
[366276505,1750170650361,-380.0,0.00024164,6]
[366276507,1750170650371,-460.0,0.00024164,6]
[366276509,1750170650381,-551.97,0.00024164,6]
[366276511,1750170650390,-344.3564387,0.00024164,6]
[366276513,1750170650400,-379.70772422,0.00024164,6]
[366276515,1750170650410,-460.0,0.00024164,6]
[366276517,1750170650419,-549.97,0.00024164,6]
[366276519,1750170650429,-460.0,0.00024164,6]
[366276521,1750170650438,-460.0,0.00024164,6]
[366276523,1750170650448,-460.0,0.00024164,6]
[366276525,1750170650457,-460.0,0.00024164,6]
[366276527,1750170650467,-460.0,0.00024164,6]
[366276529,1750170650476,-440.0,0.00024164,6]
[366276530,1750170650485,-460.0,0.00024164,6]
[366276531,1750170650494,-460.0,0.00024164,6]
[366276533,1750170650504,-460.0,0.00024164,6]
[366276535,1750170650514,-460.0,0.00024164,6]
[366276537,1750170650525,-460.0,0.00024164,6]
[366276540,1750170650535,-460.0,0.00024164,6]
[366276542,1750170650545,-562.42181919,0.00024164,6]
[366276544,1750170650554,-460.0,0.00024164,6]
[366276545,1750170650564,-460.0,0.00024164,6]
[366276547,1750170650574,-460.0,0.00024164,6]
[366276550,1750170650584,-460.0,0.00024164,6]
[366276551,1750170650594,-460.0,0.00024164,6]
[366276554,1750170650607,-460.0,0.00024164,6]
[366276556,1750170650617,-460.0,0.00024164,6]
[366276558,1750170650626,-460.0,0.00024164,6]
[366276559,1750170650636,-460.0,0.00024164,6]
[366276561,1750170650645,-363.06869583,0.00024164,6]
[366276564,1750170650656,-360.0,0.00024164,6]
[366276565,1750170650665,-460.0,0.00024164,6]
[366276568,1750170650675,-460.0,0.00024164,6]
[366276569,1750170650685,-460.0,0.00024164,6]
[366276571,1750170650695,-460.0,0.00024164,6]
[366276573,1750170650705,-460.0,0.00024164,6]
[366276575,1750170650715,-460.0,0.00024164,6]
[366276577,1750170650725,-460.0,0.00024164,6]
[366276579,1750170650734,-379.54883852,0.00024164,6]
[366276581,1750170650744,-460.0,0.00024164,6]
[366276583,1750170650754,-460.0,0.00024164,6]
[366276585,1750170650765,-460.0,0.00024164,6]
[366276587,1750170650775,-460.0,0.00024164,6]
[366276589,1750170650786,-460.0,0.00024164,6]
[366276591,1750170650796,-151.0,0.00024164,7]
[366276593,1750170650807,-460.0,0.00024164,6]
[366276596,1750170650819,-460.0,0.00024164,6]
[366276597,1750170650829,-460.0,0.00024164,6]
[366276599,1750170650839,-460.0,0.00024164,6]
[366276601,1750170650849,-460.0,0.00024164,6]
[366276604,1750170650861,-531.93,0.00024164,6]
[366276605,1750170650871,-430.0,0.00024164,6]
[366276606,1750170650882,-460.0,0.00024164,6]
[366276607,1750170650892,-460.0,0.00024164,6]
[366276608,1750170650903,-160.949276,0.00024164,2]
[366276609,1750170650914,-460.0,0.00024164,6]
[366276610,1750170650925,-160.949276,0.00024164,2]
[366276611,1750170650935,-460.0,0.00024164,6]
[366276612,1750170650945,-460.0,0.00024164,6]
[366276613,1750170650956,-460.0,0.00024164,6]
[366276614,1750170650966,-473.59996304,0.00024164,6]
[366276615,1750170650975,-435.20675287,0.00024164,6]
[366276616,1750170650986,-503.35,0.00024164,6]
[366276617,1750170650998,-531.58,0.00024164,6]
[366276618,1750170651008,-500.0,0.00024164,6]
[366276619,1750170651018,-1444.82,0.00024164,6]
[366276620,1750170651028,-460.0,0.00024164,6]
[366276621,1750170651038,-634.51,0.00024164,6]
[366276622,1750170651048,-460.0,0.00024164,6]
[366276623,1750170651058,-460.0,0.00024164,6]
[366276624,1750170651068,-460.0,0.00024164,6]
[366276625,1750170651077,-460.0,0.00024164,6]
[366276626,1750170651088,-460.0,0.00024164,6]
[366276627,1750170651099,-460.0,0.00024164,6]
[366276628,1750170651110,-460.0,0.00024164,6]
[366276629,1750170651120,-151.0,0.00024164,7]
[366276631,1750170651130,-235.61093178,0.00024164,6]
[366276633,1750170651140,-460.0,0.00024164,6]
[366276635,1750170651150,-460.0,0.00024164,6]
[366276637,1750170651159,-290.45234,0.00024164,7]
[366276639,1750170651169,-460.0,0.00024164,6]
[366276641,1750170651180,-151.0,0.00024164,7]
[366276643,1750170651189,-290.45234,0.00024164,7]
[366276644,1750170651198,-460.0,0.00024164,6]
[366276646,1750170651208,-460.0,0.00024164,6]
[366276648,1750170651217,-460.0,0.00024164,6]
[366276650,1750170651227,-460.0,0.00024164,6]
[366276652,1750170651237,-460.0,0.00024164,6]
[366276654,1750170651247,-518.88226165,0.00024164,6]
[366276656,1750170651257,-460.0,0.00024164,6]
[366276658,1750170651267,-460.0,0.00024164,6]
[366276660,1750170651277,-151.0,0.00024164,7]
[366276662,1750170651287,-460.0,0.00024164,6]
[366276664,1750170651297,-460.0,0.00024164,6]
[366276665,1750170651306,-460.0,0.00024164,6]
[366276667,1750170651316,-151.274964,0.00024164,7]
[366276669,1750170651326,-460.0,0.00024164,6]
[366276671,1750170651336,-460.0,0.00024164,6]
[366276673,1750170651346,-460.0,0.00024164,6]
[366276675,1750170651356,-404.28530864,0.00024164,6]
[366276677,1750170651366,-1338.75,0.00024164,6]
[366276679,1750170651375,-460.0,0.00024164,6]
[366276681,1750170651384,-460.0,0.00024164,6]
[366276683,1750170651395,-460.0,0.00024164,6]
[366276685,1750170651404,-460.0,0.00024164,6]
[366276686,1750170651414,-460.0,0.00024164,6]
[366276688,1750170651424,-460.0,0.00024164,6]
[366276690,1750170651434,-609.33,0.00024164,6]
[366276692,1750170651444,-151.0,0.00024164,7]
[366276703,1750170651548,-460.0,0.00024164,6]
[366276705,1750170651558,-3630.13,0.00024164,6]
[366276707,1750170651568,-151.0,0.00024164,7]
[366276709,1750170651578,-217.123683,0.00024164,7]
[366276711,1750170651587,-278.915758,0.00024164,7]
[366276713,1750170651597,-460.0,0.00024164,6]
[366276715,1750170651607,-1029.77,0.00024164,6]
[366276717,1750170651617,-460.0,0.00024164,6]
[366276718,1750170651627,-460.0,0.00024164,6]
[366276720,1750170651637,-460.0,0.00024164,6]
[366276722,1750170651648,-460.0,0.00024164,6]
[366276724,1750170651658,-161.7344,0.00024164,7]
[366276726,1750170651667,-784.51,0.00024164,6]
[366276728,1750170651678,-460.0,0.00024164,6]
[366276730,1750170651688,-460.0,0.00024164,6]
[366276732,1750170651698,-460.0,0.00024164,6]
[366276734,1750170651708,-882.04,0.00024164,6]
[366276736,1750170651717,-460.0,0.00024164,6]
[366276738,1750170651727,-460.0,0.00024164,6]
[366276740,1750170651736,-2162.37,0.00024164,6]
[366276742,1750170651745,-1475.26,0.00024164,6]
[366276743,1750170651755,-1540.65,0.00024164,6]
[366276745,1750170651766,-460.0,0.00024164,6]
[366276747,1750170651775,-440.0,0.00024164,6]
[366276749,1750170651785,-460.0,0.00024164,6]
[366276751,1750170651796,-1268.46,0.00024164,6]
[366276753,1750170651808,-663.63,0.00024164,6]
[366276755,1750170651822,-460.0,0.00024164,6]
[366276757,1750170651831,-460.0,0.00024164,6]
[366276759,1750170651840,-935.47,0.00024164,6]
[366276761,1750170651850,-2724.36,0.00024164,6]
[366276763,1750170651860,-460.0,0.00024164,6]
[366276765,1750170651870,-7288.05,0.00024164,6]
[366276767,1750170651879,-3840.13,0.00024164,6]
[366276768,1750170651890,-460.0,0.00024164,6]